fUSD/lending_fUSD_20240319
["ID","MTS","AMOUNT","RATE_DAILY","PERIOD"]
[319568243,1710869432888,-970.58,0.00036712,61]
[319568244,1710869432898,-1307.5,0.00036876,61]
[319568246,1710869432908,-744.88,0.00036878,2]
[319568248,1710869432918,-1000.0,0.00037,30]
[319568250,1710869432928,-181.2,0.00037146,2]
[319568252,1710869432938,-347.86,0.00037243,2]
[319568254,1710869432947,-11788.33884129,0.00037266,2]
[319568256,1710869432961,-150.0,0.00037364,2]
[319568258,1710869432971,-150.0,0.00037388,2]
[319568261,1710869432982,-982.2088,0.00037442,2]
[319568264,1710869432998,-2399.6467,0.00037442,2]
[319568267,1710869433009,-1770.5544,0.00037442,2]
[319568270,1710869433019,-298.0533,0.00037442,2]
[319568272,1710869433029,-2465.3125,0.00037442,2]
[319568274,1710869433040,-1000.0,0.00037442,2]
[319568276,1710869433052,-2822.467,0.00037442,2]
[319568278,1710869433063,-1563.0975,0.00037442,2]
[319568281,1710869433074,-2482.15942839,0.00037442,2]
[319568283,1710869433085,-553.41590732,0.00037442,2]
[319568285,1710869433095,-927.4255731,0.00037442,8]
[319568287,1710869433105,-800.0,0.00037456,10]
[319568289,1710869433116,-161.74147955,0.00037501,7]
[319568291,1710869433127,-240.9,0.00037532,3]
[319568293,1710869433137,-970.58,0.00037534,63]
[319568295,1710869433148,-617.35202905,0.0003754,4]
[319568296,1710869433158,-444.47065312,0.0003754,4]
[319568298,1710869433169,-6276.54556778,0.0003754,4]
[319568300,1710869433179,-658.35678169,0.0003754,4]
[319568302,1710869433190,-100000.0,0.00037542,2]
[319568304,1710869433200,-160.3651,0.00037542,2]
[319568306,1710869433217,-25967.3745,0.00037542,2]
[319568308,1710869433227,-245000.0,0.00037542,2]
[319568311,1710869433238,-7500.0,0.00037542,2]
[319568313,1710869433249,-1000.0,0.00037542,2]
[319568315,1710869433261,-155.25019045,0.00037542,2]
[319568317,1710869433273,-9354.39802484,0.00037542,10]
[319568318,1710869433284,-233.60009471,0.00037542,2]
[319568321,1710869433294,-153.5022566,0.00037542,2]
[319568323,1710869433304,-171.08532898,0.00037542,2]
[319568324,1710869433314,-17734.07500766,0.00037639,4]
[319568326,1710869433325,-1919.09106593,0.0003764,4]
[319568329,1710869433336,-220.75350523,0.0003764,4]
[319568331,1710869433347,-270.06130344,0.0003764,4]
[319568333,1710869433357,-778.45096994,0.0003764,4]
[319568334,1710869433368,-252.23171098,0.0003764,4]
[319568337,1710869433378,-155.0,0.0003764,4]
[319568339,1710869433390,-190.51767373,0.0003764,4]
[319568341,1710869433401,-341.91373854,0.0003764,4]
[319568343,1710869433413,-779.74941358,0.0003764,4]
[319568344,1710869433424,-16753.23772573,0.00037641,4]
[319568345,1710869433435,-824.46269,0.00037641,2]
[319568346,1710869433447,-305.24,0.00037641,30]
[319568347,1710869433460,-153.29170987,0.00037641,2]
[319568348,1710869433474,-153.29170987,0.00037641,2]
[319568349,1710869433486,-153.29170987,0.00037641,2]
[319568350,1710869433497,-413.29367167,0.00037641,15]
[319568351,1710869433508,-391.41157357,0.00037641,15]
[319568352,1710869433519,-276187.32252473,0.00037641,9]
[319568353,1710869433534,-52480.8,0.00037641,9]
[319568354,1710869433548,-18507.00000069,0.00037641,9]
[319568355,1710869433562,-2004.759,0.00037641,9]
[319568356,1710869433700,-4944.50459879,0.00037641,9]
[319568357,1710869433728,-3612.44922692,0.00037641,9]
[319568358,1710869433741,-368.2711833,0.00037641,9]
[319568381,1710869438098,-1898.11921666,0.00037542,2]
[319568382,1710869438217,-655.19,0.00037542,2]
[319568388,1710869440137,-4946.69078334,0.00037542,2]
[319568389,1710869440147,-2270.10679299,0.00037639,2]
[319568390,1710869440156,-500.0,0.00037641,15]
[319568391,1710869440166,-9055.58018714,0.00037641,9]
[319568392,1710869440178,-1629.98094198,0.00037641,9]
[319568393,1710869440190,-43232.03513677,0.00037641,9]
[319568394,1710869440201,-251040.11758716,0.00037641,9]
[319568395,1710869440240,-66044.19052902,0.00037641,9]
[319568396,1710869440252,-838.38660546,0.00037641,9]
[319568397,1710869440276,-1063.96311532,0.00037641,9]
[319568398,1710869440288,-2004.54769105,0.00037641,9]
[319568399,1710869440300,-651.58496906,0.00037641,9]
[319568400,1710869440331,-342.88749921,0.00037641,9]
[319568401,1710869440347,-1006.632,0.00037641,9]
[319568402,1710869440431,-3946.1,0.00037641,9]
[319568403,1710869440442,-15917.65684172,0.00037641,9]
[319568404,1710869440457,-2409.35153101,0.00037641,9]
[319568405,1710869440471,-1411.2,0.00037641,9]
[319568406,1710869440482,-448.09065,0.00037641,9]
[319568407,1710869440494,-3896.22072483,0.00037641,9]
[319568408,1710869440530,-4602.22180426,0.00037641,9]
[319568436,1710869443083,-2000.0074,0.00037641,9]
[319568437,1710869443094,-66384.44668615,0.00037641,9]
[319568438,1710869443151,-30954.36162854,0.00037641,9]
[319568439,1710869443163,-158544.49218993,0.00037641,9]
[319568440,1710869443175,-501.453095,0.00037641,9]
[319568441,1710869443222,-3933.43684283,0.00037641,9]
[319568442,1710869443234,-522.0238743,0.00037641,9]
[319568443,1710869443245,-265.36254297,0.00037641,9]
[319568444,1710869443258,-863.99423,0.00037641,9]
[319568445,1710869443271,-522.73036951,0.00037641,9]
[319568446,1710869443287,-463.700001,0.00037641,9]
[319568447,1710869443298,-2150.29458121,0.00037641,9]
[319568448,1710869443324,-498.59909513,0.00037641,9]
[319568449,1710869443335,-328.32741597,0.00037641,9]
[319568450,1710869443368,-1012.97035628,0.00037641,9]
[319568451,1710869443380,-293.75433028,0.00037641,9]
[319568452,1710869443393,-512.79334909,0.00037641,9]
[319568453,1710869443410,-11747.37557674,0.00037641,9]
[319568454,1710869443424,-758.89354767,0.00037641,9]
[319568455,1710869443436,-1952.2,0.00037641,9]
[319568456,1710869443451,-3309.72471872,0.00037641,9]
[319568457,1710869443477,-9971.99851249,0.00037641,9]
[319568458,1710869443489,-1953.29231363,0.00037641,9]
[319568459,1710869443501,-20992.59590905,0.00037641,9]
[319568460,1710869443512,-823.08195931,0.00037641,9]
[319568515,1710869446756,-6084.47034577,0.00037641,9]
[319568516,1710869446771,-9405.33962043,0.00037641,9]
[319568517,1710869446786,-2362.31635657,0.00037641,9]
[319568518,1710869446798,-456854.79177477,0.00037641,9]
[319568519,1710869446810,-131131.9951511,0.00037641,9]
[319568520,1710869446822,-304948.12,0.00037641,9]
[319568521,1710869446856,-682.05,0.00037641,9]
[319568522,1710869446962,-253.52,0.00037641,9]
[319568711,1710870632359,-166.14618306,0.0002393,2]
[319568713,1710870632370,-932.60024608,0.00023931,2]
[319568722,1710870632441,-5000.0,0.00023931,2]
[319568724,1710870632455,-4.65681666,0.00023931,2]
[319568726,1710870632465,-155.0,0.00023931,2]
[319568728,1710870632476,-284.94111589,0.00023932,2]
[319568731,1710870632489,-542.19,0.00023932,2]
[319568733,1710870632501,-455.55,0.00023932,2]
[319568735,1710870632513,-432.92,0.00023932,2]
[319568737,1710870632525,-167.96136737,0.00023932,2]
[319568740,1710870632536,-593.81557354,0.00023933,2]
[319568743,1710870632867,-23.82815937,0.00023933,2]
[319568744,1710870632877,-1882.0,0.000296,3]
[319568745,1710870632888,-155.0,0.0003,4]
[319568746,1710870632898,-151.83158361,0.00030656,7]
[319568747,1710870632907,-150.0,0.0003087,4]
[319568748,1710870632917,-151.83158361,0.00030967,7]
[319568749,1710870632929,-155.07717704,0.00032087,7]
[319568750,1710870632939,-499.99,0.00032087,2]
[319568751,1710870632949,-151.76221806,0.00033179,7]
[319568752,1710870632959,-376.38,0.00033756,2]
[319568753,1710870632968,-150.0,0.00034548,10]
[319568754,1710870632979,-467.32,0.00035487,2]
[319568755,1710870632989,-153.23,0.00035601,5]
[319568756,1710870632999,-478.45,0.00035611,2]
[319568757,1710870633009,-500.0,0.00035616,8]
[319568758,1710870633019,-250.0,0.00035716,2]
[319568759,1710870633029,-250.0,0.00035716,2]
[319568760,1710870633038,-162.68,0.00035717,10]
[319568761,1710870633049,-250.0,0.00035793,110]
[319568762,1710870633058,-1287.28,0.00035793,2]
[319568763,1710870633068,-376.38,0.0003602,2]
[319568764,1710870633077,-264.55,0.00036044,2]
[319568765,1710870633089,-197.87,0.00036104,120]
[319568766,1710870633098,-157.85836378,0.00036368,7]
[319568767,1710870633107,-250.0,0.00036372,2]
[319568768,1710870633117,-356.26,0.00036641,2]
[319568769,1710870633126,-300.0,0.00036642,5]
[319568770,1710870633138,-168.98,0.00036655,120]
[319568771,1710870633147,-940.11,0.00036712,61]
[319568772,1710870633158,-211.61,0.00036765,2]
[319568773,1710870633168,-500.0,0.00036876,61]
[319568774,1710870633177,-439.71157135,0.0003699,2]
[319568775,1710870633187,-28641.76535061,0.00037,30]
[319568776,1710870633197,-300.0,0.0003719,5]
[319568777,1710870633207,-10252.51568496,0.00037265,2]
[319568778,1710870633216,-922.7,0.00037397,2]
[319568779,1710870633226,-922.7,0.00037397,2]
[319568780,1710870633235,-922.7,0.00037397,2]
[319568781,1710870633244,-922.7,0.00037397,2]
[319568782,1710870633254,-922.7,0.00037397,2]
[319568783,1710870633263,-165.1727658,0.00037432,2]
[319568784,1710870633272,-510.694047,0.00037439,2]
[319568785,1710870633282,-179.15525737,0.0003744,4]
[319568786,1710870633291,-409.66410151,0.00037441,4]
[319568787,1710870633300,-4421.4074,0.00037442,2]
[319568788,1710870633309,-39718.9832,0.00037442,2]
[319568789,1710870633319,-38573.939,0.00037442,2]
[319568790,1710870633328,-800.0,0.00037456,10]
[319568791,1710870633339,-157.85836378,0.00037524,7]
[319568792,1710870633348,-165.1727658,0.00037532,2]
[319568793,1710870633358,-940.11,0.00037534,63]
[319568794,1710870633369,-937.33950803,0.00037538,8]
[319568795,1710870633379,-4658.3932,0.00037539,2]
[319568796,1710870633393,-7218.2038,0.00037539,2]
[319568797,1710870633402,-212.70373204,0.0003754,9]
[319568798,1710870633412,-153.5022566,0.00037541,2]
[319568799,1710870633422,-1021.20353542,0.00037541,2]
[319568800,1710870633431,-5564.2649,0.00037542,2]
[319568801,1710870633441,-8574.86485614,0.00037542,10]
[319568802,1710870633450,-183.13900974,0.00037542,7]
[319568803,1710870633460,-165.1727658,0.0003759,2]
[319568804,1710870633471,-108989.62736097,0.000376,7]
[319568805,1710870633481,-200.0,0.00037632,7]
[319568806,1710870633501,-161.74147955,0.00037637,15]
[319568807,1710870633511,-500.0,0.00037637,15]
[319568808,1710870633520,-532.35993258,0.00037637,15]
[319568809,1710870633530,-500.0,0.00037637,15]
[319568810,1710870633540,-500.0,0.00037637,15]
[319568811,1710870633549,-500.0,0.00037637,15]
[319568812,1710870633560,-500.0,0.00037637,15]
[319568813,1710870633571,-500.0,0.00037637,15]
[319568814,1710870633582,-500.0,0.00037637,2]
[319568815,1710870633591,-500.0,0.00037637,2]
[319568816,1710870633600,-6286.99,0.00037637,5]
[319568817,1710870633610,-247.74773083,0.00037637,2]
[319568818,1710870633620,-500.0,0.00037637,2]
[319568819,1710870633629,-500.0,0.00037637,2]
[319568820,1710870633642,-6852.23,0.00037637,5]
[319568821,1710870633651,-714.45555555,0.00037637,2]
[319568822,1710870633661,-3965.91,0.00037638,5]
[319568823,1710870633670,-1342.2,0.00037638,5]
[319568824,1710870633679,-550.08,0.00037638,5]
[319568825,1710870633689,-500.0,0.00037638,5]
[319568826,1710870633698,-763.58,0.00037638,5]
[319568827,1710870633707,-2420.4,0.00037638,5]
[319568828,1710870633717,-3934.0,0.00037638,5]
[319568829,1710870633727,-500.0,0.00037638,5]
[319568830,1710870633737,-692.56,0.00037638,5]
[319568831,1710870633748,-500.0,0.00037638,5]
[319568832,1710870633758,-4525.55,0.00037638,5]
[319568833,1710870633768,-500.0,0.00037638,5]
[319568834,1710870633778,-500.0,0.00037638,5]
[319568835,1710870633790,-500.0,0.00037638,5]
[319568836,1710870633799,-501.27,0.00037638,5]
[319568837,1710870633809,-800.5,0.00037638,5]
[319568838,1710870633820,-6649.66,0.00037638,5]
[319568839,1710870633830,-500.0,0.00037638,5]
[319568840,1710870633840,-500.0,0.00037638,5]
[319568841,1710870633850,-664.4,0.00037638,5]
[319568842,1710870633860,-403.5838022,0.00037638,5]
[319568843,1710870633871,-500.0,0.00037638,5]
[319568844,1710870633881,-6422.94,0.00037638,5]
[319568845,1710870633893,-500.0,0.00037638,5]
[319568846,1710870633902,-500.0,0.00037638,5]
[319568847,1710870633912,-500.0,0.00037638,5]
[319568848,1710870633922,-3084.35,0.00037638,5]
[319568849,1710870633932,-500.0,0.00037638,5]
[319568850,1710870633941,-501.74,0.00037638,5]
[319568851,1710870633951,-500.0,0.00037638,5]
[319568852,1710870633961,-4138.7,0.00037638,5]
[319568853,1710870633971,-500.0,0.00037638,5]
[319568854,1710870633980,-902.92,0.00037638,5]
[319568855,1710870633990,-2779.12,0.00037638,5]
[319568856,1710870633999,-500.0,0.00037638,5]
[319568857,1710870634009,-225.16,0.00037638,5]
[319568858,1710870634019,-1311.49,0.00037638,5]
[319568859,1710870634028,-496.09114783,0.00037638,5]
[319568860,1710870634038,-755.84,0.00037638,5]
[319568861,1710870634048,-500.0,0.00037638,5]
[319568862,1710870634057,-500.0,0.00037638,5]
[319568863,1710870634067,-2699.07,0.00037638,5]
[319568864,1710870634078,-500.0,0.00037638,5]
[319568865,1710870634088,-500.0,0.00037638,5]
[319568866,1710870634099,-500.0,0.00037638,5]
[319568867,1710870634110,-3581.49,0.00037638,5]
[319568868,1710870634119,-10369.27,0.00037638,5]
[319568869,1710870634129,-500.0,0.00037638,5]
[319568870,1710870634145,-500.0,0.00037638,5]
[319568871,1710870634156,-500.0,0.00037638,5]
[319568872,1710870634166,-3256.37,0.00037638,5]
[319568873,1710870634177,-1140.31,0.00037638,5]
[319568874,1710870634187,-500.0,0.00037638,5]
[319568875,1710870634197,-944.82,0.00037638,5]
[319568876,1710870634210,-1225.7,0.00037638,5]
[319568877,1710870634219,-12159.01,0.00037638,5]
[319568878,1710870634229,-2278.5,0.00037638,5]
[319568879,1710870634239,-3010.82,0.00037638,5]
[319568880,1710870634249,-724.51,0.00037638,5]
[319568881,1710870634259,-611.94,0.00037638,5]
[319568882,1710870634269,-6526.59,0.00037638,5]
[319568883,1710870634279,-3725.11,0.00037638,5]
[319568884,1710870634289,-500.0,0.00037638,5]
[319568885,1710870634299,-1773.25,0.00037638,5]
[319568886,1710870634309,-500.0,0.00037638,5]
[319568887,1710870634318,-1286.29,0.00037638,5]
[319568888,1710870634327,-500.0,0.00037638,5]
[319568889,1710870634337,-500.0,0.00037638,5]
[319568890,1710870634348,-651.11,0.00037638,5]
[319568891,1710870634358,-500.0,0.00037638,5]
[319568892,1710870634368,-500.0,0.00037638,5]
[319568893,1710870634377,-500.0,0.00037638,5]
[319568894,1710870634395,-629.09,0.00037638,5]
[319568895,1710870634405,-3291.3,0.00037638,5]
[319568896,1710870634414,-500.0,0.00037638,5]
[319568897,1710870634424,-734.86,0.00037638,5]
[319568898,1710870634434,-545.35,0.00037638,5]
[319568899,1710870634444,-8695.02,0.00037638,5]
[319568900,1710870634454,-732.04,0.00037638,5]
[319568901,1710870634463,-500.0,0.00037638,5]
[319568902,1710870634473,-500.0,0.00037638,5]
[319568903,1710870634484,-500.0,0.00037638,5]
[319568904,1710870634493,-2826.48,0.00037638,5]
[319568905,1710870634503,-500.0,0.00037638,5]
[319568906,1710870634513,-500.0,0.00037638,5]
[319568907,1710870634523,-500.0,0.00037638,5]
[319568908,1710870634533,-259.6998344,0.00037638,5]
[319568909,1710870634543,-7783.65,0.00037638,5]
[319568910,1710870634552,-500.0,0.00037638,5]
[319568911,1710870634562,-500.0,0.00037638,5]
[319568912,1710870634572,-2863.52,0.00037638,5]
[319568913,1710870634582,-500.0,0.00037638,5]
[319568914,1710870634592,-513.96834714,0.00037638,5]
[319568915,1710870634602,-500.0,0.00037638,5]
[319568916,1710870634611,-500.0,0.00037638,5]
[319568917,1710870634621,-8515.46,0.00037638,5]
[319568918,1710870634631,-844.87,0.00037638,5]
[319568919,1710870634645,-2976.91,0.00037638,5]
[319568920,1710870634655,-500.0,0.00037638,2]
[319568921,1710870634665,-500.0,0.00037638,5]
[319568922,1710870634674,-7634.23,0.00037638,5]
[319568923,1710870634685,-612.98899166,0.00037638,5]
[319568924,1710870634694,-3619.3,0.00037638,5]
[319568925,1710870634704,-500.0,0.00037638,5]
[319568926,1710870634714,-500.0,0.00037638,5]
[319568927,1710870634725,-500.0,0.00037638,5]
[319568928,1710870634734,-11729.48,0.00037638,5]
[319568929,1710870634744,-500.0,0.00037638,5]
[319568930,1710870634758,-500.0,0.00037638,5]
[319568931,1710870634768,-500.0,0.00037638,5]
[319568932,1710870634778,-500.0,0.00037638,5]
[319568933,1710870634789,-4180.16,0.00037638,5]
[319568934,1710870634799,-500.0,0.00037638,5]
[319568935,1710870634809,-1100.3,0.00037638,5]
[319568936,1710870634819,-2143.25,0.00037638,5]
[319568937,1710870634829,-554.83,0.00037638,5]
[319568938,1710870634839,-500.0,0.00037638,5]
[319568939,1710870634849,-14993.44,0.00037638,5]
[319568940,1710870634859,-160.75229536,0.00037638,5]
[319568941,1710870634878,-760.01770464,0.00037638,5]
[319568942,1710870634890,-162.29885595,0.00037638,5]
[319568952,1710870638323,-617.64373291,0.00023929,2]
[319568953,1710870638333,-107.63626709,0.0002393,2]
[319568954,1710870638347,-651.63,0.0002393,2]
[319568955,1710870638441,-457.47311049,0.0002393,2]
[319568956,1710870638452,-155.0,0.0002393,2]
[319568957,1710870638461,-322.58,0.00035646,2]
[319568958,1710870638472,-241.143,0.00036372,2]
[319568959,1710870638483,-3775.99114405,0.00037638,5]
[319568960,1710870638493,-500.0,0.00037638,5]
[319568961,1710870638503,-500.0,0.00037638,5]
[319568962,1710870638512,-500.0,0.00037638,5]
[319568963,1710870638522,-500.0,0.00037638,5]
[319568964,1710870638532,-500.0,0.00037638,5]
[319568965,1710870638542,-500.0,0.00037638,5]
[319568966,1710870638551,-57994.34,0.00037638,5]
[319568967,1710870638562,-2325.81,0.00037638,5]
[319568968,1710870638867,-500.0,0.00037638,5]
[319568969,1710870638877,-500.0,0.00037638,5]
[319568970,1710870638886,-601.54,0.00037638,5]
[319568971,1710870638897,-555.85,0.00037638,5]
[319568972,1710870638906,-500.0,0.00037638,5]
[319568973,1710870638915,-500.0,0.00037638,5]
[319568974,1710870638925,-500.0,0.00037638,5]
[319568975,1710870638934,-500.0,0.00037638,5]
[319568976,1710870638944,-500.0,0.00037638,5]
[319568977,1710870638954,-500.0,0.00037638,5]
[319568978,1710870638963,-21585.28,0.00037638,5]
[319568979,1710870638973,-500.0,0.00037638,5]
[319568980,1710870638983,-1411.59,0.00037638,5]
[319568981,1710870638993,-698.69,0.00037638,5]
[319568982,1710870639003,-521.31,0.00037638,5]
[319568983,1710870639012,-833.33,0.00037638,5]
[319568984,1710870639022,-500.0,0.00037638,5]
[319568985,1710870639032,-7028.2,0.00037638,5]
[319568986,1710870639042,-500.0,0.00037638,5]
[319568987,1710870639051,-707.97,0.00037638,5]
[319568988,1710870639061,-566.58,0.00037638,5]
[319568989,1710870639070,-500.0,0.00037638,5]
[319568990,1710870639080,-955.64,0.00037638,5]
[319568991,1710870639090,-500.0,0.00037638,5]
[319568992,1710870639100,-500.0,0.00037638,5]
[319568993,1710870639109,-514.54,0.00037638,5]
[319568994,1710870639119,-500.0,0.00037638,5]
[319568995,1710870639129,-1016.61,0.00037638,5]
[319568996,1710870639141,-500.0,0.00037638,5]
[319568997,1710870639154,-500.0,0.00037638,5]
[319568998,1710870639165,-935.65,0.00037638,5]
[319568999,1710870639175,-500.0,0.00037638,5]
[319569000,1710870639185,-500.0,0.00037638,5]
[319569001,1710870639196,-11270.69,0.00037638,5]
[319569002,1710870639206,-500.0,0.00037638,5]
[319569003,1710870639216,-500.0,0.00037638,5]
[319569004,1710870639226,-500.0,0.00037638,5]
[319569005,1710870639237,-1076.17,0.00037638,5]
[319569006,1710870639247,-500.0,0.00037638,5]
[319569007,1710870639257,-500.0,0.00037638,5]
[319569008,1710870639267,-609.09,0.00037638,5]
[319569009,1710870639278,-653.17,0.00037638,5]
[319569010,1710870639288,-500.0,0.00037638,5]
[319569011,1710870639297,-1492.33,0.00037638,5]
[319569012,1710870639307,-1431.7,0.00037638,5]
[319569013,1710870639317,-538.76491894,0.00037638,5]
[319569014,1710870639330,-22.00508106,0.00037638,5]
[319569015,1710870639342,-500.0,0.00037638,5]
[319569016,1710870639351,-556.72,0.00037638,5]
[319569017,1710870639361,-2857.78,0.00037638,5]
[319569018,1710870639371,-994.28,0.00037638,5]
[319569019,1710870639381,-714.45555555,0.00037638,2]
[319569020,1710870639398,-5001.18888885,0.00037639,2]
[319569021,1710870639408,-293.48387263,0.00037639,30]
[319569022,1710870639418,-155.0,0.00037639,2]
[319569023,1710870639428,-1098.60235753,0.00037639,4]
[319569024,1710870639438,-659.02177182,0.00037639,4]
[319569025,1710870639448,-2975.05678191,0.00037639,4]
[319569026,1710870639457,-155.00009687,0.00037639,4]
[319569027,1710870639468,-2242.40559378,0.00037639,7]
[319569028,1710870639574,-296.13635167,0.00037639,7]
[319569029,1710870639583,-155.0,0.00037639,4]
[319569030,1710870639592,-1219.26364833,0.00037639,4]
[319569035,1710870640912,-415.03970402,0.00037639,4]
[319569036,1710870640921,-3060.38498379,0.00037639,4]
[319569037,1710870640931,-2279.37102954,0.00037639,4]
[319569038,1710870640940,-7980.36341478,0.00037639,4]
[319569039,1710870640950,-1860.28655469,0.00037639,10]
[319569040,1710870640959,-373.40071982,0.00037639,4]
[319569041,1710870640970,-235.74906193,0.00037639,4]
[319569042,1710870640980,-198.65502792,0.00037639,4]
[319569043,1710870640990,-444.94455248,0.00037639,4]
[319569044,1710870641000,-549.63,0.0003764,5]
[319569045,1710870641009,-500.0,0.0003764,5]
[319569046,1710870641020,-847.3,0.0003764,5]
[319569047,1710870641029,-1183.13,0.0003764,5]
[319569048,1710870641039,-3095.7,0.0003764,5]
[319569049,1710870641050,-3173.11,0.0003764,5]
[319569050,1710870641060,-3740.05,0.0003764,5]
[319569051,1710870641434,-1121.7577691,0.0003764,5]
[319569052,1710870641642,-779.29219697,0.0003764,5]
[319569053,1710870641663,-1028.35003393,0.0003764,5]
[319569054,1710870641674,-500.0,0.0003764,5]
[319569055,1710870641684,-552.76657871,0.0003764,5]
[319569056,1710870641696,-495.86190003,0.0003764,5]
[319569057,1710870641708,-875.99152126,0.0003764,5]
[319569058,1710870641718,-18.68794054,0.0003764,5]
[319569074,1710870643493,-500.0,0.00037637,15]
[319569075,1710870643503,-213.2386866,0.00037637,15]
[319569076,1710870643623,-161.27906205,0.00037637,15]
[319569077,1710870643633,-2277.65,0.00037637,5]
[319569078,1710870643649,-3490.28,0.00037637,5]
[319569079,1710870643659,-500.0,0.00037638,5]
[319569080,1710870643670,-481.31205946,0.0003764,5]
[319569081,1710870643681,-6296.1,0.0003764,5]
[319569082,1710870643692,-5387.28,0.0003764,5]
[319569083,1710870643702,-500.0,0.0003764,5]
[319569084,1710870643712,-7142.57,0.0003764,5]
[319569085,1710870643722,-42414.92723306,0.0003764,5]
[319569094,1710870646318,-1303.302,0.00037638,5]
[319569095,1710870646329,-78.888,0.00037638,5]
[319569096,1710870646340,-902.57,0.00037638,5]
[319569097,1710870646351,-728.62,0.00037638,5]
[319569098,1710870646360,-324.03606643,0.0003764,5]
[319569099,1710870646374,-6526.6,0.0003764,5]
[319569100,1710870646609,-17591.68670051,0.0003764,5]
[319569101,1710870646619,-10764.1,0.0003764,5]
[319569102,1710870646629,-605.03,0.0003764,5]
[319569103,1710870646639,-5980.98,0.0003764,5]
[319569104,1710870646653,-2651.96,0.0003764,5]
[319569105,1710870646662,-5675.81802618,0.0003764,5]
[319569106,1710870646682,-1142.91197382,0.0003764,5]
[319569107,1710870646691,-5444.02,0.0003764,5]
[319569108,1710870646701,-13864.9,0.0003764,5]
[319569109,1710870646710,-5746.97,0.0003764,5]
[319569110,1710870646720,-9048.13,0.0003764,5]
[319569112,1710870646729,-1232.56802618,0.0003764,5]
[319569114,1710870646741,-9389.36197382,0.0003764,5]
[319569116,1710870646750,-8634.03,0.0003764,5]
[319569117,1710870646759,-3988.63,0.0003764,5]
[319569118,1710870646769,-550.06242519,0.0003764,5]
[319569119,1710870646778,-4206.29,0.0003764,5]
[319569120,1710870646787,-500.0,0.0003764,5]
[319569121,1710870646797,-5541.38,0.0003764,5]
[319569122,1710870646807,-41485.01,0.0003764,5]
[319569123,1710870646817,-3236.07,0.0003764,5]
[319569124,1710870646826,-1496.55,0.0003764,5]
[319569125,1710870646836,-12204.97294155,0.0003764,5]
[319569126,1710870646855,-907.41705845,0.0003764,5]
[319569128,1710870646865,-358.76544155,0.0003764,5]
[319569151,1710870808602,-500.0,0.00019607,2]
[319569152,1710870808636,-12742.53062275,0.00019607,2]
[319569153,1710870808670,-2165.35441959,0.00019607,2]
[319569154,1710870808703,-273.65428497,0.00019608,2]
[319569167,1710870869561,313.71639212,0.00015,2]
[319569191,1710870988772,550.0,0.00022,30]
[319569196,1710871373008,-1883.56248326,0.00019574,2]
[319569197,1710871373028,-155.0,0.00019575,2]
[319569198,1710871373047,-232.20623137,0.00019575,2]
[319569199,1710871373066,-2343.16159328,0.00019575,2]
[319569200,1710871373086,-3806.5497709,0.00019575,2]
[319569348,1710871831519,-4172.42152539,0.00019542,2]
[319569350,1710871831529,-2343.16159328,0.00019543,2]
[319569352,1710871831538,-232.20623137,0.00019543,2]
[319569354,1710871831547,-340.82508517,0.00019544,2]
[319569356,1710871831557,-51.89469342,0.00019544,2]
[319569358,1710871831569,-463.50522411,0.00019544,2]
[319569363,1710871831603,-32.70309313,0.00019544,2]
[319569365,1710871831613,-155.0,0.00019544,2]
[319569367,1710871831622,-476.30013885,0.00019544,2]
[319569369,1710871831633,-730.12545248,0.00019544,2]
[319569377,1710871831735,-29.22954165,0.00019544,2]
[319569379,1710871831744,-1763.15458407,0.00019545,2]